Body Name,Document Number,Service,Type of Expenditure,Invoice Date,Supplier Name,Cost to the Council (Amount Exc VAT),Month
EREWASH BOROUGH COUNCIL,9410,Non Domestic Rates Retention  ,Section 31 Grant NNDR         ,08-Mar-2022,"DEPT FOR LEVELLING UP,HOUSING&COMMUNITIE","126,994.00",Mar-22
EREWASH BOROUGH COUNCIL,9286,Non Domestic Rates Retention  ,NNDR Tariff                   ,21-Mar-2022,DERBY CITY COUNCIL                      ,"520,564.97",Mar-22
EREWASH BOROUGH COUNCIL,8870,Community Services            ,Stationery                    ,07-Feb-2022,ENVIRONMENT ANALYST                     ,353.80,Mar-22
EREWASH BOROUGH COUNCIL,9148,Community Services            ,Reference Literature and Publi,23-Feb-2022,RICARDO-AEA LTD                         ,"1,791.00",Mar-22
EREWASH BOROUGH COUNCIL,10348,Arts Development              ,Special Events                ,01-Mar-2022,REDACTED PERSONAL DATA,"1,050.00",Mar-22
EREWASH BOROUGH COUNCIL,8444,Arts Development              ,Special Events                ,12-Feb-2022,SURTAL ARTS                             ,300.00,Mar-22
EREWASH BOROUGH COUNCIL,8379,Arts Development              ,Special Events                ,11-Feb-2022,AVAGO CRAFTS                            ,340.00,Mar-22
EREWASH BOROUGH COUNCIL,9854,Arts Development              ,Special Events                ,16-Feb-2022,MJ MOVERS                               ,480.00,Mar-22
EREWASH BOROUGH COUNCIL,9853,Arts Development              ,Grants and Subscriptions      ,12-Aug-2021,PPL PRS LTD                             ,517.04,Mar-22
EREWASH BOROUGH COUNCIL,8622,Erewash Museum                ,Electricity                   ,10-Feb-2022,TOTALENERGIES GAS & POWER LTD           ,387.13,Mar-22
EREWASH BOROUGH COUNCIL,8861,Erewash Museum                ,Gas                           ,14-Feb-2022,TOTALENERGIES GAS & POWER LTD           ,371.51,Mar-22
EREWASH BOROUGH COUNCIL,8390,Erewash Museum                ,Sanitary Services             ,09-Feb-2022,RENTOKIL INITIAL SERVICES LIMITED       ,26.60,Mar-22
EREWASH BOROUGH COUNCIL,9014,Erewash Museum                ,Exhibitions                   ,20-Jan-2022,SUBLIME SCIENCE                         ,496.00,Mar-22
EREWASH BOROUGH COUNCIL,8433,Fireworks Display             ,Equipment for Hire            ,10-Feb-2022, AT EVENTS SERVICES                     ,"1,217.50",Mar-22
EREWASH BOROUGH COUNCIL,8595,Ilkeston Charter Fair         ,Contracted Services           ,01-Feb-2022,WARD RECYCLING                          ,346.00,Mar-22
EREWASH BOROUGH COUNCIL,9396,Communications                ,General Publicity and Promotio,02-Mar-2022,ROYAL MAIL GROUP LTD.                   ,"5,087.97",Mar-22
EREWASH BOROUGH COUNCIL,8830,Communications                ,General Publicity and Promotio,24-Feb-2022,WARNER (MIDLANDS) PLC                   ,"7,351.00",Mar-22
EREWASH BOROUGH COUNCIL,8106,Community Safety              ,General Equipment             ,02-Feb-2022,POLICE AND CRIME COMMISSIONER FOR DERBYS,302.00,Mar-22
EREWASH BOROUGH COUNCIL,8393,Community Safety              ,Analysts Fees                 ,14-Feb-2022,POLICE AND CRIME COMMISSIONER FOR DERBYS,"5,200.00",Mar-22
EREWASH BOROUGH COUNCIL,8106,Community Safety              ,Grants and Subscriptions      ,02-Feb-2022,POLICE AND CRIME COMMISSIONER FOR DERBYS,"1,500.00",Mar-22
EREWASH BOROUGH COUNCIL,8393,"Police, Crime Commissioner Com",Project Grants                ,14-Feb-2022,POLICE AND CRIME COMMISSIONER FOR DERBYS,425.00,Mar-22
EREWASH BOROUGH COUNCIL,9278,Transport Trading Account     ,Computer Software             ,10-Mar-2022,TRUTAC LTD                              ,720.00,Mar-22
EREWASH BOROUGH COUNCIL,9053,Transport Trading Account     ,Training                      ,04-Mar-2022,ROAD2TRAIN LTD                          ,539.10,Mar-22
EREWASH BOROUGH COUNCIL,8351,Household Waste Collection    ,Agency Staff                  ,01-Feb-2022,EXTRA PERSONNEL LTD                     ,"4,118.07",Mar-22
EREWASH BOROUGH COUNCIL,8339,Household Waste Collection    ,Agency Staff                  ,05-Feb-2022,WORKCHAIN LTD                           ,"1,450.41",Mar-22
EREWASH BOROUGH COUNCIL,8843,Household Waste Collection    ,Training                      ,09-Feb-2022,THREESIXY LOGISTICS TRAINING & REC LTD  ,650.00,Mar-22
EREWASH BOROUGH COUNCIL,9071,Household Waste Collection    ,Tyres                         ,28-Feb-2022,UK CONTAINER MAINTENANCE LTD            ,"1,485.00",Mar-22
EREWASH BOROUGH COUNCIL,9364,Household Waste Collection    ,Tyres                         ,28-Feb-2022,LODGE TYRE COMPANY LTD                  ,180.45,Mar-22
EREWASH BOROUGH COUNCIL,8112,Household Waste Collection    ,Vehicle Tracking Repairs and M,01-Feb-2022,MASTERNAUT (UK) LTD                     ,"1,524.90",Mar-22
EREWASH BOROUGH COUNCIL,8895,Household Waste Collection    ,Hire Charges                  ,28-Feb-2022,ENTERPRISE FLEX E RENT                  ,405.00,Mar-22
EREWASH BOROUGH COUNCIL,8851,Household Waste Collection    ,Hire Charges                  ,31-Jan-2022,MAUN MOTORS                             ,"1,200.00",Mar-22
EREWASH BOROUGH COUNCIL,8365,Household Waste Collection    ,Repairs and Maintenance       ,04-Feb-2022,DENNIS EAGLE LTD                        ,418.84,Mar-22
EREWASH BOROUGH COUNCIL,8365,Household Waste Collection    ,Repairs and Maintenance       ,04-Feb-2022,DENNIS EAGLE LTD                        ,327.07,Mar-22
EREWASH BOROUGH COUNCIL,8365,Household Waste Collection    ,Repairs and Maintenance       ,04-Feb-2022,DENNIS EAGLE LTD                        ,704.56,Mar-22
EREWASH BOROUGH COUNCIL,8813,Household Waste Collection    ,Repairs and Maintenance       ,24-Feb-2022,TERBERG MATEC UK                        ,430.13,Mar-22
EREWASH BOROUGH COUNCIL,10363,Trade Waste                   ,Training                      ,07-Dec-2021,QSP TRAINING LTD                        ,"1,595.00",Mar-22
EREWASH BOROUGH COUNCIL,8357,Trade Waste                   ,Agency Staff                  ,01-Feb-2022,EXTRA PERSONNEL LTD                     ,550.56,Mar-22
EREWASH BOROUGH COUNCIL,8580,Trade Waste                   ,Agency Staff                  ,07-Feb-2022,EXTRA PERSONNEL LTD                     ,550.56,Mar-22
EREWASH BOROUGH COUNCIL,8406,Trade Waste                   ,Trade Waste                   ,14-Feb-2022,THE WILSTHORPE TAVERN,468.26,Mar-22
EREWASH BOROUGH COUNCIL,9800,Trade Waste                   ,Trade Waste                   ,21-Mar-2022,REDACTED PERSONAL DATA,279.31,Mar-22
EREWASH BOROUGH COUNCIL,9364,Trade Waste                   ,Tyres                         ,28-Feb-2022,LODGE TYRE COMPANY LTD                  ,410.00,Mar-22
EREWASH BOROUGH COUNCIL,8443,Trade Waste                   ,Bins                          ,11-Feb-2022,ESE WORLD LIMITED                       ,"2,500.00",Mar-22
EREWASH BOROUGH COUNCIL,8363,Trade Waste                   ,Repairs and Maintenance       ,03-Feb-2022,DENNIS EAGLE LTD                        ,328.90,Mar-22
EREWASH BOROUGH COUNCIL,8605,Trade Waste                   ,Repairs and Maintenance       ,16-Feb-2022,DENNIS EAGLE LTD                        ,688.08,Mar-22
EREWASH BOROUGH COUNCIL,8349,Kerbside Recycling Collection ,Waste Disposal                ,31-Jan-2022,GAE SMITH HOLDINGS T/A CASEPAK          ,"6,834.71",Mar-22
EREWASH BOROUGH COUNCIL,8351,Kerbside Recycling Collection ,Agency Staff                  ,01-Feb-2022,EXTRA PERSONNEL LTD                     ,"3,341.26",Mar-22
EREWASH BOROUGH COUNCIL,9000,Kerbside Recycling Collection ,Agency Staff                  ,14-Feb-2022,EXTRA PERSONNEL LTD                     ,406.51,Mar-22
EREWASH BOROUGH COUNCIL,9001,Kerbside Recycling Collection ,Agency Staff                  ,14-Feb-2022,EXTRA PERSONNEL LTD                     ,499.87,Mar-22
EREWASH BOROUGH COUNCIL,8539,Kerbside Recycling Collection ,Agency Staff                  ,12-Feb-2022,WORKCHAIN LTD                           ,"2,315.83",Mar-22
EREWASH BOROUGH COUNCIL,8339,Kerbside Recycling Collection ,Agency Staff                  ,05-Feb-2022,WORKCHAIN LTD                           ,966.94,Mar-22
EREWASH BOROUGH COUNCIL,9364,Kerbside Recycling Collection ,Tyres                         ,28-Feb-2022,LODGE TYRE COMPANY LTD                  ,210.00,Mar-22
EREWASH BOROUGH COUNCIL,8097,Kerbside Recycling Collection ,Repairs and Maintenance       ,01-Feb-2022,DENNIS EAGLE LTD                        ,258.75,Mar-22
EREWASH BOROUGH COUNCIL,8097,Kerbside Recycling Collection ,Repairs and Maintenance       ,01-Feb-2022,DENNIS EAGLE LTD                        ,457.58,Mar-22
EREWASH BOROUGH COUNCIL,8805,Kerbside Recycling Collection ,Repairs and Maintenance       ,23-Feb-2022,DENNIS EAGLE LTD                        ,517.50,Mar-22
EREWASH BOROUGH COUNCIL,8805,Kerbside Recycling Collection ,Repairs and Maintenance       ,23-Feb-2022,DENNIS EAGLE LTD                        ,457.58,Mar-22
EREWASH BOROUGH COUNCIL,8881,Kerbside Recycling Collection ,Repairs and Maintenance       ,01-Mar-2022,DENNIS EAGLE LTD                        ,300.03,Mar-22
EREWASH BOROUGH COUNCIL,8867,Contaminated Land             ,Survey Fees                   ,17-Nov-2021,STM ENVIRONMENTAL CONSULTANTS LTD       ,"8,614.00",Mar-22
EREWASH BOROUGH COUNCIL,8117,Infec Disease & Food Poisoning,Contracted Services           ,02-Feb-2022,OYSTER PARTNERSHIP LTD                  ,"1,665.00",Mar-22
EREWASH BOROUGH COUNCIL,8344,Infec Disease & Food Poisoning,Contracted Services           ,09-Feb-2022,OYSTER PARTNERSHIP LTD                  ,"1,665.00",Mar-22
EREWASH BOROUGH COUNCIL,8564,Infec Disease & Food Poisoning,Contracted Services           ,16-Feb-2022,OYSTER PARTNERSHIP LTD                  ,"1,327.50",Mar-22
EREWASH BOROUGH COUNCIL,8759,Infec Disease & Food Poisoning,Contracted Services           ,23-Feb-2022,OYSTER PARTNERSHIP LTD                  ,"1,327.50",Mar-22
EREWASH BOROUGH COUNCIL,8756,Infec Disease & Food Poisoning,Fees Costs and Expenses       ,23-Feb-2022,OSBORNE RICHARDSON                      ,315.00,Mar-22
EREWASH BOROUGH COUNCIL,8757,Infec Disease & Food Poisoning,Fees Costs and Expenses       ,23-Feb-2022,OSBORNE RICHARDSON                      ,396.00,Mar-22
EREWASH BOROUGH COUNCIL,8343,Infec Disease & Food Poisoning,Fees Costs and Expenses       ,09-Feb-2022,OYSTER PARTNERSHIP LTD                  ,970.00,Mar-22
EREWASH BOROUGH COUNCIL,8807,Licensing - Health Services   ,Veterinary Fees               ,02-Feb-2022,SCARSDALE VETS                          ,333.00,Mar-22
EREWASH BOROUGH COUNCIL,8116,Corporate Health and Safety   ,Water Testing (Legionella)    ,31-Jan-2022,STERILIZING SERVICES LTD                ,804.00,Mar-22
EREWASH BOROUGH COUNCIL,8313,Corporate Health and Safety   ,Electrical Testing            ,07-Feb-2022,ATMAN UK LTD                            ,"1,857.32",Mar-22
EREWASH BOROUGH COUNCIL,8417,Urban Renewal                 ,Agency Staff                  ,09-Feb-2022,BUCKINGHAM FUTURES LIMITED              ,"1,258.00",Mar-22
EREWASH BOROUGH COUNCIL,8778,Urban Renewal                 ,Agency Staff                  ,23-Feb-2022,BUCKINGHAM FUTURES LIMITED              ,"1,259.13",Mar-22
EREWASH BOROUGH COUNCIL,8581,Urban Renewal                 ,Agency Staff                  ,16-Feb-2022,BUCKINGHAM FUTURES LIMITED              ,"1,258.57",Mar-22
EREWASH BOROUGH COUNCIL,9429,Homelessness                  ,Spend to Save                 ,15-Mar-2022,REDACTED PERSONAL DATA,"1,433.00",Mar-22
EREWASH BOROUGH COUNCIL,7931,Homelessness                  ,Temporary Accommodation       ,14-Jan-2022,VICTORIA PARK HOTEL                     ,"1,200.00",Mar-22
EREWASH BOROUGH COUNCIL,8115,Homelessness                  ,Homelessness-Lease Properties ,22-Jan-2022,FUTURES HOMESCAPE LTD                   ,"1,141.75",Mar-22
EREWASH BOROUGH COUNCIL,9162,Homelessness                  ,Fees Costs and Expenses       ,07-Mar-2022,DERBYSHIRE COUNTY COUNCIL...            ,"1,540.00",Mar-22
EREWASH BOROUGH COUNCIL,8429,Homelessness                  ,Homelessness Prevention Grant ,14-Feb-2022,DERBYSHIRE DALES DISTRICT COUNCIL       ,"2,000.00",Mar-22
EREWASH BOROUGH COUNCIL,8558,Homelessness                  ,Homelessness Prevention Grant ,11-Feb-2022,NORTH EAST DERBYSHIRE DISTRICT COUNCIL. ,"2,597.22",Mar-22
EREWASH BOROUGH COUNCIL,8637,Licensing Liquor Entment Other,Materials/Consumables         ,15-Feb-2022,EURO BUSINESS SERVICES                  ,483.85,Mar-22
EREWASH BOROUGH COUNCIL,9315,Community Grants              ,Project Grants                ,11-Mar-2022,ENRICHING COMMUNITIES CIC,983.00,Mar-22
EREWASH BOROUGH COUNCIL,9119,Community Grants              ,Grants and Subscriptions      ,09-Mar-2022,FRIENDS OF BENNERLEY VIADUCT,270.00,Mar-22
EREWASH BOROUGH COUNCIL,9145,Community Grants              ,Grants and Subscriptions      ,09-Mar-2022,LONG EATON RFC,600.00,Mar-22
EREWASH BOROUGH COUNCIL,8664,Community Grants              ,Grants and Subscriptions      ,23-Feb-2022,CHATSWORTH ARTS CENTRE,500.00,Mar-22
EREWASH BOROUGH COUNCIL,9298,Community Grants              ,Grants and Subscriptions      ,11-Mar-2022,2195 SQUADRON AIR TRAINING CORPS LOTTERY,271.00,Mar-22
EREWASH BOROUGH COUNCIL,9307,Community Grants              ,Grants and Subscriptions      ,11-Mar-2022,2ND LONG EATON ST JOHN GUIDES,276.00,Mar-22
EREWASH BOROUGH COUNCIL,9312,Community Grants              ,Grants and Subscriptions      ,11-Mar-2022,FRIENDS OF WILSTHORPE COMMUNITY SCHOOL,"1,000.00",Mar-22
EREWASH BOROUGH COUNCIL,9147,Community Grants              ,Grants and Subscriptions      ,09-Mar-2022,LARKLANDS SCHOOL,"1,000.00",Mar-22
EREWASH BOROUGH COUNCIL,8876,Front Line Support Services   ,Security                      ,28-Feb-2022,KINGS ARMOURED SECURITY SERVICES        ,672.00,Mar-22
EREWASH BOROUGH COUNCIL,9012,Insurances (Corporate Matters),Insurance                     ,31-Jan-2022,MARSH LTD                               ,448.33,Mar-22
EREWASH BOROUGH COUNCIL,9386,Treasury and Bank Charges     ,Consultants Fees              ,03-Mar-2022,LINK GROUP                              ,"9,308.90",Mar-22
EREWASH BOROUGH COUNCIL,10386,Treasury and Bank Charges     ,Bank Charges                  ,10-Mar-2022,LLOYDS BANK PLC                         ,520.62,Mar-22
EREWASH BOROUGH COUNCIL,9459,Treasury and Bank Charges     ,Credit/Debit Card Charges     ,14-Mar-2022,CAPITA                                  ,"2,280.97",Mar-22
EREWASH BOROUGH COUNCIL,11242,Treasury and Bank Charges     ,Allpay/Post Office Charges    ,31-Mar-2022,ALLPAY LIMITED                          ,544.40,Mar-22
EREWASH BOROUGH COUNCIL,9013,Accountancy                   ,Subscriptions                 ,18-Feb-2022,CHARTERED INSTITUTE OF PUBLIC FINANCE & ,"3,980.00",Mar-22
EREWASH BOROUGH COUNCIL,8656,Accountancy                   ,Agency Staff                  ,20-Feb-2022,MACILDOWIE RECRUITMENT EXPERTISE        ,832.83,Mar-22
EREWASH BOROUGH COUNCIL,8853,Accountancy                   ,Agency Staff                  ,27-Feb-2022,MACILDOWIE RECRUITMENT EXPERTISE        ,852.79,Mar-22
EREWASH BOROUGH COUNCIL,9100,Accountancy                   ,Agency Staff                  ,06-Mar-2022,MACILDOWIE RECRUITMENT EXPERTISE        ,993.18,Mar-22
EREWASH BOROUGH COUNCIL,9419,Accountancy                   ,Agency Staff                  ,13-Mar-2022,MACILDOWIE RECRUITMENT EXPERTISE        ,"1,007.21",Mar-22
EREWASH BOROUGH COUNCIL,9017,Revenues and Benefits         ,Stationery                    ,03-Mar-2022,JENSON PRESS PRINTERS                   ,399.00,Mar-22
EREWASH BOROUGH COUNCIL,8179,Revenues and Benefits         ,Stationery                    ,03-Feb-2022,ENCORE ENVELOPES                        ,586.80,Mar-22
EREWASH BOROUGH COUNCIL,9384,Revenues and Benefits         ,Software Licences             ,11-Mar-2022,IEG4 LIMITED                            ,"17,270.00",Mar-22
EREWASH BOROUGH COUNCIL,8373,Revenues and Benefits         ,Postages                      ,03-Feb-2022,ROYAL MAIL GROUP LTD.                   ,341.67,Mar-22
EREWASH BOROUGH COUNCIL,8159,Revenues and Benefits         ,Postages                      ,02-Feb-2022,ROYAL MAIL GROUP LTD.                   ,"1,253.49",Mar-22
EREWASH BOROUGH COUNCIL,8852,Revenues and Benefits         ,Postages                      ,23-Feb-2022,ROYAL MAIL GROUP LTD.                   ,"1,477.33",Mar-22
EREWASH BOROUGH COUNCIL,9873,Discretionary Housing Payments,Discretionary Housing Payments,23-Mar-2022,EMH HOMES                               ,"51,550.00",Mar-22
EREWASH BOROUGH COUNCIL,9364,Ilkeston Admin and Courier    ,Tyres                         ,28-Feb-2022,LODGE TYRE COMPANY LTD                  ,60.00,Mar-22
EREWASH BOROUGH COUNCIL,9064,Internal Audit                ,Consultants Fees              ,03-Mar-2022,BDO                                     ,"4,788.00",Mar-22
EREWASH BOROUGH COUNCIL,8624,ICT Support Services          ,General Equipment             ,21-Feb-2022,CCS MEDIA LIMITED                       ,522.57,Mar-22
EREWASH BOROUGH COUNCIL,8882,ICT Support Services          ,General Equipment             ,01-Mar-2022,CCS MEDIA LIMITED                       ,329.16,Mar-22
EREWASH BOROUGH COUNCIL,9069,ICT Support Services          ,General Equipment             ,04-Mar-2022,CCS MEDIA LIMITED                       ,832.15,Mar-22
EREWASH BOROUGH COUNCIL,9113,ICT Support Services          ,Maintenance of Equipment      ,08-Mar-2022,JIGSAW BUSINESS NETWORKS LTD            ,"1,940.00",Mar-22
EREWASH BOROUGH COUNCIL,8407,ICT Support Services          ,Software Licences             ,14-Feb-2022,CIVICA UK LIMITED                       ,771.76,Mar-22
EREWASH BOROUGH COUNCIL,8173,ICT Support Services          ,Software Licences             ,04-Feb-2022,AXESS SYSTEMS LTD                       ,797.28,Mar-22
EREWASH BOROUGH COUNCIL,8671,ICT Support Services          ,Data Lines                    ,21-Feb-2022,INSIGHT DIRECT (UK) LTD                 ,"8,912.12",Mar-22
EREWASH BOROUGH COUNCIL,8794,ICT Support Services          ,Data Lines                    ,22-Feb-2022,INSIGHT DIRECT (UK) LTD                 ,"2,587.96",Mar-22
EREWASH BOROUGH COUNCIL,8795,ICT Support Services          ,Data Lines                    ,22-Feb-2022,INSIGHT DIRECT (UK) LTD                 ,"8,912.12",Mar-22
EREWASH BOROUGH COUNCIL,8356,ICT Support Services          ,Mobile Phones                 ,01-Feb-2022,CLASS AFFINITY PROJECTS LTD             ,"1,009.90",Mar-22
EREWASH BOROUGH COUNCIL,9335,ICT Support Services          ,Mobile Phones                 ,01-Mar-2022,CLASS AFFINITY PROJECTS LTD             ,"2,301.66",Mar-22
EREWASH BOROUGH COUNCIL,8627,ICT Support Services          ,Telephones                    ,18-Feb-2022,BRITISH TELECOMMUNICATIONS PLC          ,668.00,Mar-22
EREWASH BOROUGH COUNCIL,8833,ICT Support Services          ,Telephones                    ,22-Feb-2022,BRITISH TELECOMMUNICATIONS PLC          ,"1,666.56",Mar-22
EREWASH BOROUGH COUNCIL,8589,ICT Support Services          ,Telephones                    ,18-Feb-2022,MAINTEL EUROPE LIMITED                  ,"4,817.50",Mar-22
EREWASH BOROUGH COUNCIL,9107,Personnel                     ,Apprenticeship Levy           ,17-Mar-2022,HMRC CUMBERNAULD                        ,"1,990.00",Mar-22
EREWASH BOROUGH COUNCIL,9107,Personnel                     ,Apprenticeship Levy           ,17-Mar-2022,HMRC CUMBERNAULD                        ,"1,250.00",Mar-22
EREWASH BOROUGH COUNCIL,9301,Personnel                     ,Recruitment Expenses          ,11-Mar-2022,DERBYSHIRE COUNTY COUNCIL...            ,784.00,Mar-22
EREWASH BOROUGH COUNCIL,9131,Occupational Health & Welfare ,Occupational Health Service   ,08-Nov-2021,BUPA HEALTH CLINICS                     ,340.00,Mar-22
EREWASH BOROUGH COUNCIL,7989,Occupational Health & Welfare ,Occupational Health Service   ,01-Feb-2022,BUPA HEALTH CLINICS                     ,418.55,Mar-22
EREWASH BOROUGH COUNCIL,8850,Occupational Health & Welfare ,Occupational Health Service   ,01-Mar-2022,BUPA HEALTH CLINICS                     ,418.55,Mar-22
EREWASH BOROUGH COUNCIL,8808,Occupational Health & Welfare ,Occupational Health Service   ,08-Feb-2022,MEDIGOLD HEALTH CONSULTANCY LIMITED     ,252.00,Mar-22
EREWASH BOROUGH COUNCIL,8397,Training - Personnel Only     ,E Learning                    ,01-Feb-2022,LEARNING POOL LTD                       ,"6,750.00",Mar-22
EREWASH BOROUGH COUNCIL,8184,Training - Personnel Only     ,Qualification Training        ,07-Feb-2022,IRRV                                    ,"1,500.00",Mar-22
EREWASH BOROUGH COUNCIL,8782,Development Control           ,Planning Fees                 ,25-Feb-2022,PORTALPLANQUEST LTD                     ,462.00,Mar-22
EREWASH BOROUGH COUNCIL,8638,Development Control           ,Courses and Seminars          ,08-Feb-2022,PLANNINGJOBS.COM                        ,774.00,Mar-22
EREWASH BOROUGH COUNCIL,9455,Development Control           ,Consultants Fees              ,28-Feb-2022,DLP PLANNING LIMITED                    ,"2,117.35",Mar-22
EREWASH BOROUGH COUNCIL,9368,Development Control           ,Consultants Fees              ,28-Feb-2022,TERRAQUEST DATA SOLUTIONS               ,"2,352.00",Mar-22
EREWASH BOROUGH COUNCIL,9369,Development Control           ,Consultants Fees              ,28-Feb-2022,TERRAQUEST DATA SOLUTIONS               ,"4,532.00",Mar-22
EREWASH BOROUGH COUNCIL,9357,Development Control           ,Consultants Fees              ,09-Feb-2022,SSA PLANNING                            ,"1,350.00",Mar-22
EREWASH BOROUGH COUNCIL,8407,Development Control           ,Computer Software             ,14-Feb-2022,CIVICA UK LIMITED                       ,"14,553.45",Mar-22
EREWASH BOROUGH COUNCIL,9357,Development Control           ,Consultants Fees              ,09-Feb-2022,SSA PLANNING                            ,"3,680.00",Mar-22
EREWASH BOROUGH COUNCIL,9852,Development Control           ,Work In Default               ,28-Feb-2022,CUSHMAN & WAKEFIELD DEBENHAM TIE LEUNG  ,"2,750.00",Mar-22
EREWASH BOROUGH COUNCIL,9397,Planning Policy               ,Consultation                  ,10-Mar-2022,NOTTINGHAM CITY COUNCIL                 ,"9,600.00",Mar-22
EREWASH BOROUGH COUNCIL,9868,Economic Development          ,Contracted Services           ,18-Mar-2022,ITUS SECURITY SOLUTIONS LIMITED         ,"1,853.00",Mar-22
EREWASH BOROUGH COUNCIL,9858,Economic Development          ,Contracted Services           ,18-Mar-2022,RH CREATIVE MEDIA                       ,"1,900.00",Mar-22
EREWASH BOROUGH COUNCIL,9855,Economic Development          ,Contracted Services           ,17-Mar-2022,RTC MEDICAL SOLUTIONS LTD               ,"1,640.00",Mar-22
EREWASH BOROUGH COUNCIL,9439,Economic Development          ,Contracted Services           ,06-Mar-2022,DEEP DOWN BRASS BAND                    ,450.00,Mar-22
EREWASH BOROUGH COUNCIL,9077,Economic Development          ,Contracted Services           ,28-Feb-2022,EAST MIDLANDS CHAMBER                   ,"17,029.11",Mar-22
EREWASH BOROUGH COUNCIL,10267,Economic Development          ,Contracted Services           ,17-Mar-2022,EAST MIDLANDS CHAMBER                   ,"17,768.39",Mar-22
EREWASH BOROUGH COUNCIL,9727,Economic Development          ,Contracted Services           ,10-Mar-2022,EREWASH SOUND                           ,350.00,Mar-22
EREWASH BOROUGH COUNCIL,9379,Economic Development          ,Contracted Services           ,10-Mar-2022,TA LIVE MUSIC 2U                        ,800.00,Mar-22
EREWASH BOROUGH COUNCIL,9262,Economic Development          ,Contracted Services           ,16-Dec-2021,BIGTOPS UK                              ,779.43,Mar-22
EREWASH BOROUGH COUNCIL,9062,Economic Development          ,Contracted Services           ,16-Dec-2021,BIGTOPS UK                              ,"2,338.32",Mar-22
EREWASH BOROUGH COUNCIL,9872,Economic Development          ,Contracted Services           ,19-Mar-2022,CRANBERRY FLICK                         ,425.00,Mar-22
EREWASH BOROUGH COUNCIL,9870,Economic Development          ,Contracted Services           ,18-Mar-2022,Global Entertainment Associates         ,500.00,Mar-22
EREWASH BOROUGH COUNCIL,9015,Economic Development          ,Contracted Services           ,23-Feb-2022,ALIVE NETWORK ENTERTAINMENT             ,415.00,Mar-22
EREWASH BOROUGH COUNCIL,9063,Economic Development          ,Contracted Services           ,08-Mar-2022,LIVE AND LOCAL                          ,"1,040.00",Mar-22
EREWASH BOROUGH COUNCIL,9850,Economic Development          ,Contracted Services           ,21-Mar-2022,MAYBE SOLUTIONS LIMITED                 ,"7,000.00",Mar-22
EREWASH BOROUGH COUNCIL,8763,Economic Development          ,Grants and Subscriptions      ,12-Jan-2022,EREWASH PARTNERSHIP LTD                 ,"19,625.00",Mar-22
EREWASH BOROUGH COUNCIL,8857,Economic Development          ,Project Grants                ,28-Feb-2022,DCA Consultancy Ltd                     ,800.00,Mar-22
EREWASH BOROUGH COUNCIL,7964,Economic Development          ,Project Grants                ,28-Jan-2022,FISHER HARGREAVES PROCTOR LIMITED       ,"1,650.00",Mar-22
EREWASH BOROUGH COUNCIL,8612,Economic Development          ,Contracted Services           ,01-Feb-2022,PROXIMITY FUTURES T/A ELEPHANT WIFI     ,303.33,Mar-22
EREWASH BOROUGH COUNCIL,8841,Economic Development          ,Contracted Services           ,01-Mar-2022,PROXIMITY FUTURES T/A ELEPHANT WIFI     ,303.33,Mar-22
EREWASH BOROUGH COUNCIL,9006,Building Control - Fee Earning,Courses and Seminars          ,14-Feb-2022,REDACTIVE PUBLISHING LTD                ,572.00,Mar-22
EREWASH BOROUGH COUNCIL,9007,Building Control - Fee Earning,Courses and Seminars          ,14-Feb-2022,REDACTIVE PUBLISHING LTD                ,572.00,Mar-22
EREWASH BOROUGH COUNCIL,8407,Building Control - Fee Earning,Computer Software             ,14-Feb-2022,CIVICA UK LIMITED                       ,"2,554.36",Mar-22
EREWASH BOROUGH COUNCIL,8407,Building Control - Fee Earning,Computer Software             ,14-Feb-2022,CIVICA UK LIMITED                       ,"1,430.34",Mar-22
EREWASH BOROUGH COUNCIL,8424,Building Control - Fee Earning,Agency Staff                  ,04-Feb-2022,REED SPECIALIST RECRUITMENT LTD         ,606.48,Mar-22
EREWASH BOROUGH COUNCIL,8630,Building Control - Fee Earning,Agency Staff                  ,11-Feb-2022,REED SPECIALIST RECRUITMENT LTD         ,667.85,Mar-22
EREWASH BOROUGH COUNCIL,8880,Building Control - Fee Earning,Agency Staff                  ,18-Feb-2022,REED SPECIALIST RECRUITMENT LTD         ,667.85,Mar-22
EREWASH BOROUGH COUNCIL,9123,Building Control - Fee Earning,Agency Staff                  ,25-Feb-2022,REED SPECIALIST RECRUITMENT LTD         ,667.85,Mar-22
EREWASH BOROUGH COUNCIL,9452,Building Control - Fee Earning,Agency Staff                  ,04-Mar-2022,REED SPECIALIST RECRUITMENT LTD         ,667.85,Mar-22
EREWASH BOROUGH COUNCIL,8858,Building Control Adv & Inform ,Contracted Services           ,01-Mar-2022,RANSOMWOOD ESTATES UK LIMITED           ,531.67,Mar-22
EREWASH BOROUGH COUNCIL,9724,Building Control Adv & Inform ,Contracted Services           ,10-Mar-2022,RENSHAW JOINERY                         ,"1,015.00",Mar-22
EREWASH BOROUGH COUNCIL,8144,Registration of Electors      ,Stationery                    ,04-Feb-2022,SCI PRINT LTD                           ,543.30,Mar-22
EREWASH BOROUGH COUNCIL,8888,Registration of Electors      ,Postages                      ,25-Feb-2022,ROYAL MAIL GROUP LTD.                   ,523.26,Mar-22
EREWASH BOROUGH COUNCIL,8427,Registration of Electors      ,Subscriptions                 ,15-Feb-2022,THOMSON REUTERS                         ,314.00,Mar-22
EREWASH BOROUGH COUNCIL,8660,Legal Services                ,"Stamp Duty,Search and Legal Fe",22-Feb-2022,CORNERSTONE BARRISTERS                  ,500.00,Mar-22
EREWASH BOROUGH COUNCIL,8396,Legal Services                ,"Stamp Duty,Search and Legal Fe",31-Jan-2022,SHAKESPEARE MARTINEAU LLP               ,697.50,Mar-22
EREWASH BOROUGH COUNCIL,8844,Civic Transport               ,Hire Charges                  ,01-Mar-2022,CRUISE-IN-CONTROL LIMITED               ,701.60,Mar-22
EREWASH BOROUGH COUNCIL,8844,Civic Transport               ,Hire Charges                  ,01-Mar-2022,CRUISE-IN-CONTROL LIMITED               ,"1,000.00",Mar-22
EREWASH BOROUGH COUNCIL,8431,Democratic Representation     ,Maintenance of Equipment      ,14-Feb-2022,CIVICA UK LIMITED                       ,"11,449.41",Mar-22
EREWASH BOROUGH COUNCIL,9252,Green Space                   ,Training                      ,01-Mar-2022,KEEP BRITAIN TIDY                       ,153.50,Mar-22
EREWASH BOROUGH COUNCIL,8421,Green Space                   ,Training                      ,11-Feb-2022,RA INFORMATION SYSTEMS                  ,"2,938.00",Mar-22
EREWASH BOROUGH COUNCIL,8623,Green Space                   ,Electricity                   ,10-Feb-2022,TOTALENERGIES GAS & POWER LTD           ,"1,015.23",Mar-22
EREWASH BOROUGH COUNCIL,8622,Green Space                   ,Electricity                   ,10-Feb-2022,TOTALENERGIES GAS & POWER LTD           ,"2,429.68",Mar-22
EREWASH BOROUGH COUNCIL,8622,Green Space                   ,Electricity                   ,10-Feb-2022,TOTALENERGIES GAS & POWER LTD           ,446.59,Mar-22
EREWASH BOROUGH COUNCIL,8861,Green Space                   ,Gas                           ,14-Feb-2022,TOTALENERGIES GAS & POWER LTD           ,343.22,Mar-22
EREWASH BOROUGH COUNCIL,8861,Green Space                   ,Gas                           ,14-Feb-2022,TOTALENERGIES GAS & POWER LTD           ,256.67,Mar-22
EREWASH BOROUGH COUNCIL,10922,Green Space                   ,Fuel                          ,31-Mar-2022,THE RIGHT FUELCARD COMPANY LTD          ,"1,412.21",Mar-22
EREWASH BOROUGH COUNCIL,9364,Green Space                   ,Tyres                         ,28-Feb-2022,LODGE TYRE COMPANY LTD                  ,494.00,Mar-22
EREWASH BOROUGH COUNCIL,8112,Green Space                   ,Vehicle Tracking Repairs and M,01-Feb-2022,MASTERNAUT (UK) LTD                     ,"1,524.90",Mar-22
EREWASH BOROUGH COUNCIL,8432,Green Space                   ,General Equipment             ,14-Feb-2022,SLINTER MINING COMPANY                  ,368.28,Mar-22
EREWASH BOROUGH COUNCIL,9011,Green Space                   ,General Equipment             ,09-Feb-2022,ACTON TIMBER YARD LIMITED               ,720.00,Mar-22
EREWASH BOROUGH COUNCIL,9095,Green Space                   ,Materials/Consumables         ,01-Mar-2022,KEEP BRITAIN TIDY                       ,339.00,Mar-22
EREWASH BOROUGH COUNCIL,9097,Green Space                   ,Materials/Consumables         ,01-Mar-2022,KEEP BRITAIN TIDY                       ,339.00,Mar-22
EREWASH BOROUGH COUNCIL,9098,Green Space                   ,Materials/Consumables         ,01-Mar-2022,KEEP BRITAIN TIDY                       ,389.00,Mar-22
EREWASH BOROUGH COUNCIL,9099,Green Space                   ,Materials/Consumables         ,01-Mar-2022,KEEP BRITAIN TIDY                       ,452.00,Mar-22
EREWASH BOROUGH COUNCIL,8855,Green Space                   ,Materials/Consumables         ,17-Feb-2022,KOMPAN LTD                              ,"4,578.57",Mar-22
EREWASH BOROUGH COUNCIL,8990,Green Space                   ,Materials/Consumables         ,28-Feb-2022,TOM RICHARDS TREE SERVICES              ,350.00,Mar-22
EREWASH BOROUGH COUNCIL,8991,Green Space                   ,Materials/Consumables         ,23-Feb-2022,TOTAL AMENITY SUPPLIES                  ,"1,435.00",Mar-22
EREWASH BOROUGH COUNCIL,8823,Green Space                   ,Materials/Consumables         ,25-Feb-2022,CROMWELL POLYTHENE LTD                  ,815.85,Mar-22
EREWASH BOROUGH COUNCIL,8595,Green Space                   ,Materials/Consumables         ,01-Feb-2022,WARD RECYCLING                          ,465.50,Mar-22
EREWASH BOROUGH COUNCIL,8996,Green Space                   ,Materials/Consumables         ,28-Feb-2022,STANTON RECYCLING LIMITED               ,"1,094.40",Mar-22
EREWASH BOROUGH COUNCIL,8436,Green Space                   ,Materials/Consumables         ,11-Feb-2022,STEELCRAFT FABRICATIONS                 ,"1,180.00",Mar-22
EREWASH BOROUGH COUNCIL,8387,Green Space                   ,Materials/Consumables         ,12-Feb-2022,PEEL ELECTRICAL LTD                     ,460.00,Mar-22
EREWASH BOROUGH COUNCIL,8806,Green Space                   ,Materials/Consumables         ,19-Feb-2022,ALPHA DRAIN SERVICES                    ,300.00,Mar-22
EREWASH BOROUGH COUNCIL,9259,Green Space                   ,Materials/Consumables         ,03-Mar-2022,AMAZON PAYMENTS UK LTD                  ,417.40,Mar-22
EREWASH BOROUGH COUNCIL,8825,Green Space                   ,Contracted Services           ,27-Feb-2022,T H HEATH  CONTRACTS  LTD               ,472.00,Mar-22
EREWASH BOROUGH COUNCIL,8170,Green Space                   ,Contracted Services           ,03-Feb-2022,ORIGIN AMENITY SOLUTIONS                ,280.00,Mar-22
EREWASH BOROUGH COUNCIL,8382,Green Space                   ,Contracted Services           ,11-Feb-2022,ALPHA PARTNER (MIDLANDS)  LIMITED       ,"4,011.00",Mar-22
EREWASH BOROUGH COUNCIL,8457,Green Space                   ,Repairs and Maintenance       ,14-Feb-2022,RUSSELLS (KIRBYMOORSIDE) LIMITED        ,488.51,Mar-22
EREWASH BOROUGH COUNCIL,8457,Green Space                   ,Repairs and Maintenance       ,14-Feb-2022,RUSSELLS (KIRBYMOORSIDE) LIMITED        ,337.50,Mar-22
EREWASH BOROUGH COUNCIL,8458,Green Space                   ,Repairs and Maintenance       ,14-Feb-2022,RUSSELLS (KIRBYMOORSIDE) LIMITED        ,664.48,Mar-22
EREWASH BOROUGH COUNCIL,8458,Green Space                   ,Repairs and Maintenance       ,14-Feb-2022,RUSSELLS (KIRBYMOORSIDE) LIMITED        ,"1,680.00",Mar-22
EREWASH BOROUGH COUNCIL,8459,Green Space                   ,Repairs and Maintenance       ,14-Feb-2022,RUSSELLS (KIRBYMOORSIDE) LIMITED        ,"1,195.46",Mar-22
EREWASH BOROUGH COUNCIL,8459,Green Space                   ,Repairs and Maintenance       ,14-Feb-2022,RUSSELLS (KIRBYMOORSIDE) LIMITED        ,"3,950.00",Mar-22
EREWASH BOROUGH COUNCIL,9143,Green Space                   ,Repairs and Maintenance       ,28-Feb-2022,RUSSELLS (KIRBYMOORSIDE) LIMITED        ,275.73,Mar-22
EREWASH BOROUGH COUNCIL,9143,Green Space                   ,Repairs and Maintenance       ,28-Feb-2022,RUSSELLS (KIRBYMOORSIDE) LIMITED        ,"2,028.00",Mar-22
EREWASH BOROUGH COUNCIL,9252,Pride In Erewash              ,Spend to Save                 ,01-Mar-2022,KEEP BRITAIN TIDY                       ,34.14,Mar-22
EREWASH BOROUGH COUNCIL,9052,Pride In Erewash              ,Spend to Save                 ,03-Mar-2022,Tayplay Ltd                             ,460.00,Mar-22
EREWASH BOROUGH COUNCIL,9421,Pride In Erewash              ,Spend to Save                 ,16-Nov-2021,GL Jones Playgrounds LTD                ,"7,050.00",Mar-22
EREWASH BOROUGH COUNCIL,8416,Trees Hedges Local Nature Res ,Contracted Services           ,14-Feb-2022,TOM RICHARDS TREE SERVICES              ,"4,060.00",Mar-22
EREWASH BOROUGH COUNCIL,8440,Trees Hedges Local Nature Res ,Contracted Services           ,15-Feb-2022,TOM RICHARDS TREE SERVICES              ,"1,060.00",Mar-22
EREWASH BOROUGH COUNCIL,8989,Trees Hedges Local Nature Res ,Contracted Services           ,28-Feb-2022,TOM RICHARDS TREE SERVICES              ,320.00,Mar-22
EREWASH BOROUGH COUNCIL,8987,Trees Hedges Local Nature Res ,Contracted Services           ,28-Feb-2022,TOM RICHARDS TREE SERVICES              ,"1,180.00",Mar-22
EREWASH BOROUGH COUNCIL,8988,Trees Hedges Local Nature Res ,Contracted Services           ,28-Feb-2022,TOM RICHARDS TREE SERVICES              ,"3,350.00",Mar-22
EREWASH BOROUGH COUNCIL,8438,Play Areas                    ,Materials/Consumables         ,04-Feb-2022,PLAYSAFETY LTD                          ,392.00,Mar-22
EREWASH BOROUGH COUNCIL,9252,Allotments                    ,Contracted Services           ,01-Mar-2022,KEEP BRITAIN TIDY                       ,87.50,Mar-22
EREWASH BOROUGH COUNCIL,8582,Public Conveniences           ,Agency Staff                  ,07-Feb-2022,EXTRA PERSONNEL LTD                     ,"1,000.00",Mar-22
EREWASH BOROUGH COUNCIL,8358,Public Conveniences           ,Agency Staff                  ,01-Feb-2022,EXTRA PERSONNEL LTD                     ,"1,000.00",Mar-22
EREWASH BOROUGH COUNCIL,8999,Public Conveniences           ,Agency Staff                  ,14-Feb-2022,EXTRA PERSONNEL LTD                     ,100.00,Mar-22
EREWASH BOROUGH COUNCIL,8622,Public Conveniences           ,Electricity                   ,10-Feb-2022,TOTALENERGIES GAS & POWER LTD           ,570.74,Mar-22
EREWASH BOROUGH COUNCIL,9021,Public Conveniences           ,Materials/Consumables         ,02-Mar-2022,PEEL ELECTRICAL LTD                     ,368.80,Mar-22
EREWASH BOROUGH COUNCIL,8582,Street Scene                  ,Agency Staff                  ,07-Feb-2022,EXTRA PERSONNEL LTD                     ,"2,218.32",Mar-22
EREWASH BOROUGH COUNCIL,8358,Street Scene                  ,Agency Staff                  ,01-Feb-2022,EXTRA PERSONNEL LTD                     ,"2,232.10",Mar-22
EREWASH BOROUGH COUNCIL,8352,Street Scene                  ,Agency Staff                  ,01-Feb-2022,EXTRA PERSONNEL LTD                     ,"4,127.91",Mar-22
EREWASH BOROUGH COUNCIL,8584,Street Scene                  ,Agency Staff                  ,07-Feb-2022,EXTRA PERSONNEL LTD                     ,"4,633.38",Mar-22
EREWASH BOROUGH COUNCIL,8999,Street Scene                  ,Agency Staff                  ,14-Feb-2022,EXTRA PERSONNEL LTD                     ,414.36,Mar-22
EREWASH BOROUGH COUNCIL,9364,Street Scene                  ,Tyres                         ,28-Feb-2022,LODGE TYRE COMPANY LTD                  ,360.95,Mar-22
EREWASH BOROUGH COUNCIL,9252,Street Scene                  ,Hire Charges                  ,01-Mar-2022,KEEP BRITAIN TIDY                       ,13.86,Mar-22
EREWASH BOROUGH COUNCIL,9326,Street Scene                  ,General Equipment             ,23-Aug-2021,BANNER GROUP LIMITED                    ,270.84,Mar-22
EREWASH BOROUGH COUNCIL,8796,Street Scene                  ,Street Furniture              ,24-Feb-2022,NIBRA SIGNS LTD                         ,547.66,Mar-22
EREWASH BOROUGH COUNCIL,8019,Street Scene                  ,Contracted Services           ,01-Feb-2022,BROXAP LIMITED                          ,"1,270.48",Mar-22
EREWASH BOROUGH COUNCIL,9009,Street Scene                  ,Contracted Services           ,28-Feb-2022,WAYNE PEAPELL CONSULTANCY LTD           ,"1,250.00",Mar-22
EREWASH BOROUGH COUNCIL,8387,Street Scene                  ,Contracted Services           ,12-Feb-2022,PEEL ELECTRICAL LTD                     ,478.00,Mar-22
EREWASH BOROUGH COUNCIL,8387,Street Scene                  ,Contracted Services           ,12-Feb-2022,PEEL ELECTRICAL LTD                     ,460.00,Mar-22
EREWASH BOROUGH COUNCIL,9139,Street Scene                  ,Repairs and Maintenance       ,25-Feb-2022,PARTIC MOTOR SPARES LTD                 ,450.00,Mar-22
EREWASH BOROUGH COUNCIL,8622,CCTV - Ilkeston and Long Eaton,Electricity                   ,10-Feb-2022,TOTALENERGIES GAS & POWER LTD           ,407.30,Mar-22
EREWASH BOROUGH COUNCIL,8631,Car Parking                   ,Planned Preventative Maintenan,21-Feb-2022,E.ON UK ENERGY SERVICES                 ,448.62,Mar-22
EREWASH BOROUGH COUNCIL,8622,Car Parking                   ,Electricity                   ,10-Feb-2022,TOTALENERGIES GAS & POWER LTD           ,877.27,Mar-22
EREWASH BOROUGH COUNCIL,8854,Car Parking                   ,Credit/Debit Card Charges     ,28-Feb-2022,INTERNATIONAL PARKING SYSTEMS UK LTD    ,"1,145.76",Mar-22
EREWASH BOROUGH COUNCIL,8871,Car Parking                   ,Credit/Debit Card Charges     ,28-Feb-2022,KINGS ARMOURED SECURITY SERVICES        ,"1,380.40",Mar-22
EREWASH BOROUGH COUNCIL,8164,Car Parking                   ,Credit/Debit Card Charges     ,03-Feb-2022,SYNECTICS SECURITY LIMITED              ,"7,920.00",Mar-22
EREWASH BOROUGH COUNCIL,8390,Long Eaton Market             ,Sanitary Services             ,09-Feb-2022,RENTOKIL INITIAL SERVICES LIMITED       ,6.86,Mar-22
EREWASH BOROUGH COUNCIL,8622,Ilkeston Market               ,Electricity                   ,10-Feb-2022,TOTALENERGIES GAS & POWER LTD           ,473.29,Mar-22
EREWASH BOROUGH COUNCIL,8622,Shopmobility - Long Eaton     ,Electricity                   ,10-Feb-2022,TOTALENERGIES GAS & POWER LTD           ,645.33,Mar-22
EREWASH BOROUGH COUNCIL,8390,Shopmobility - Long Eaton     ,Sanitary Services             ,09-Feb-2022,RENTOKIL INITIAL SERVICES LIMITED       ,9.78,Mar-22
EREWASH BOROUGH COUNCIL,8441,Commissioned Projects         ,General Equipment             ,15-Feb-2022,KIRK HALLAM COMMUNITY HALL ASSOCIATION. ,"2,460.00",Mar-22
EREWASH BOROUGH COUNCIL,8218,Commissioned Projects         ,General Equipment             ,09-Feb-2022,HOPE Long Eaton                         ,901.40,Mar-22
EREWASH BOROUGH COUNCIL,8212,Christmas Lights              ,Planned Preventative Maintenan,02-Feb-2022,LEISURE LITES LIMTED                    ,"1,060.00",Mar-22
EREWASH BOROUGH COUNCIL,8212,Christmas Lights              ,Reactive Maintenance          ,02-Feb-2022,LEISURE LITES LIMTED                    ,"15,954.07",Mar-22
EREWASH BOROUGH COUNCIL,8798,Property and Estates          ,Repairs and Maintenance       ,24-Feb-2022,NORWOOD ELECTRICAL UK LTD               ,308.95,Mar-22
EREWASH BOROUGH COUNCIL,8355,Property and Estates          ,Repairs and Maintenance       ,08-Feb-2022,CONCEPT ELEVATORS (UK) LTD              ,"2,110.35",Mar-22
EREWASH BOROUGH COUNCIL,8094,Property and Estates          ,Repairs and Maintenance       ,01-Feb-2022,PEEL ELECTRICAL LTD                     ,453.36,Mar-22
EREWASH BOROUGH COUNCIL,8191,Property and Estates          ,Repairs and Maintenance       ,08-Feb-2022,PEEL ELECTRICAL LTD                     ,593.80,Mar-22
EREWASH BOROUGH COUNCIL,8171,Property and Estates          ,Repairs and Maintenance       ,07-Feb-2022,MDB PLUMBING (NOTTM) LTD                ,313.12,Mar-22
EREWASH BOROUGH COUNCIL,8307,Property and Estates          ,Repairs and Maintenance       ,09-Feb-2022,MDB PLUMBING (NOTTM) LTD                ,363.12,Mar-22
EREWASH BOROUGH COUNCIL,8308,Property and Estates          ,Repairs and Maintenance       ,09-Feb-2022,MDB PLUMBING (NOTTM) LTD                ,424.08,Mar-22
EREWASH BOROUGH COUNCIL,8309,Property and Estates          ,Repairs and Maintenance       ,09-Feb-2022,MDB PLUMBING (NOTTM) LTD                ,424.08,Mar-22
EREWASH BOROUGH COUNCIL,8819,Property and Estates          ,Repairs and Maintenance       ,25-Feb-2022,MDB PLUMBING (NOTTM) LTD                ,283.31,Mar-22
EREWASH BOROUGH COUNCIL,8672,Property and Estates          ,Reactive Maintenance          ,16-Feb-2022,ROBERT POCHIN LTD                       ,253.78,Mar-22
EREWASH BOROUGH COUNCIL,8091,Property and Estates          ,Reactive Maintenance          ,01-Feb-2022,PEEL ELECTRICAL LTD                     ,"1,492.60",Mar-22
EREWASH BOROUGH COUNCIL,8384,Property and Estates          ,Reactive Maintenance          ,12-Feb-2022,ALPHA PARTNER (MIDLANDS)  LIMITED       ,529.80,Mar-22
EREWASH BOROUGH COUNCIL,8462,Property and Estates          ,Reactive Maintenance          ,16-Feb-2022,ALPHA PARTNER (MIDLANDS)  LIMITED       ,344.00,Mar-22
EREWASH BOROUGH COUNCIL,8653,Property and Estates          ,Reactive Maintenance          ,22-Feb-2022,ALPHA PARTNER (MIDLANDS)  LIMITED       ,532.31,Mar-22
EREWASH BOROUGH COUNCIL,8166,Property and Estates          ,Reactive Maintenance          ,03-Feb-2022,MDB PLUMBING (NOTTM) LTD                ,328.63,Mar-22
EREWASH BOROUGH COUNCIL,8629,Property and Estates          ,Reactive Maintenance          ,21-Feb-2022,MDB PLUMBING (NOTTM) LTD                ,566.06,Mar-22
EREWASH BOROUGH COUNCIL,8138,Parks Changing Rooms          ,PPM Mechanical and Equipment  ,04-Feb-2022,MDB PLUMBING (NOTTM) LTD                ,456.38,Mar-22
EREWASH BOROUGH COUNCIL,8623,Merlin Way Depot              ,Electricity                   ,10-Feb-2022,TOTALENERGIES GAS & POWER LTD           ,"2,995.47",Mar-22
EREWASH BOROUGH COUNCIL,8861,Merlin Way Depot              ,Gas                           ,14-Feb-2022,TOTALENERGIES GAS & POWER LTD           ,646.55,Mar-22
EREWASH BOROUGH COUNCIL,8623,Civic Accommodation Long Eaton,Electricity                   ,10-Feb-2022,TOTALENERGIES GAS & POWER LTD           ,"1,877.33",Mar-22
EREWASH BOROUGH COUNCIL,8861,Civic Accommodation Long Eaton,Gas                           ,14-Feb-2022,TOTALENERGIES GAS & POWER LTD           ,"1,186.04",Mar-22
EREWASH BOROUGH COUNCIL,8861,Bridge House - Long Eaton     ,Gas                           ,14-Feb-2022,TOTALENERGIES GAS & POWER LTD           ,278.90,Mar-22
EREWASH BOROUGH COUNCIL,8359,Civic Accommodation Ilkeston  ,Agency Staff                  ,01-Feb-2022,EXTRA PERSONNEL LTD                     ,256.69,Mar-22
EREWASH BOROUGH COUNCIL,8579,Civic Accommodation Ilkeston  ,Agency Staff                  ,07-Feb-2022,EXTRA PERSONNEL LTD                     ,337.75,Mar-22
EREWASH BOROUGH COUNCIL,8623,Civic Accommodation Ilkeston  ,Electricity                   ,10-Feb-2022,TOTALENERGIES GAS & POWER LTD           ,"1,480.13",Mar-22
EREWASH BOROUGH COUNCIL,8622,Civic Accommodation Ilkeston  ,Electricity                   ,10-Feb-2022,TOTALENERGIES GAS & POWER LTD           ,482.79,Mar-22
EREWASH BOROUGH COUNCIL,8861,Civic Accommodation Ilkeston  ,Gas                           ,14-Feb-2022,TOTALENERGIES GAS & POWER LTD           ,"1,140.88",Mar-22
EREWASH BOROUGH COUNCIL,8390,Civic Accommodation Ilkeston  ,Vending Machine Provisions    ,09-Feb-2022,RENTOKIL INITIAL SERVICES LIMITED       ,274.14,Mar-22
EREWASH BOROUGH COUNCIL,8390,Civic Accommodation Ilkeston  ,Sanitary Services             ,09-Feb-2022,RENTOKIL INITIAL SERVICES LIMITED       ,25.33,Mar-22
EREWASH BOROUGH COUNCIL,8622,Toll Bar House                ,Electricity                   ,10-Feb-2022,TOTALENERGIES GAS & POWER LTD           ,"3,416.75",Mar-22
EREWASH BOROUGH COUNCIL,9084,Toll Bar House                ,Metered Water                 ,03-Mar-2022,WATER PLUS                              ,745.51,Mar-22
EREWASH BOROUGH COUNCIL,8892,Toll Bar House                ,Other Expenses                ,23-Feb-2022,EREWASH PARTNERSHIP (MANAGED WORKSPACE) ,"5,973.72",Mar-22
EREWASH BOROUGH COUNCIL,8623,Sandiacre Friesland Sports Ctr,Electricity                   ,10-Feb-2022,TOTALENERGIES GAS & POWER LTD           ,966.59,Mar-22
EREWASH BOROUGH COUNCIL,8861,Sandiacre Friesland Sports Ctr,Gas                           ,14-Feb-2022,TOTALENERGIES GAS & POWER LTD           ,344.85,Mar-22
EREWASH BOROUGH COUNCIL,9086,EBC Balance Sheet             ,Fuel Store                    ,03-Mar-2022,TENNANTS DISTRIBUTION LTD               ,450.00,Mar-22
EREWASH BOROUGH COUNCIL,9251,EBC Balance Sheet             ,COV19 Local Restriction Closed,08-Mar-2022,EREWASH PARTNERSHIP LTD                 ,"14,000.00",Mar-22
EREWASH BOROUGH COUNCIL,9109,EBC Balance Sheet             ,Payroll Coll Acc - Income Tax ,18-Mar-2022,HMRC CUMBERNAULD                        ,377.20,Mar-22
EREWASH BOROUGH COUNCIL,9758,EBC Balance Sheet             ,Payroll Coll Acc - Income Tax ,31-Mar-2022,HMRC CUMBERNAULD                        ,336.40,Mar-22
EREWASH BOROUGH COUNCIL,9107,EBC Balance Sheet             ,Payroll Coll Acc - Income Tax ,17-Mar-2022,HMRC CUMBERNAULD                        ,"64,904.08",Mar-22
EREWASH BOROUGH COUNCIL,8862,EBC Balance Sheet             ,Payroll Coll Acc Superanuation,16-Mar-2022,DERBYSHIRE COUNTY COUNCIL...            ,"120,630.27",Mar-22
EREWASH BOROUGH COUNCIL,8862,EBC Balance Sheet             ,Payroll Coll Acc Superanuation,16-Mar-2022,DERBYSHIRE COUNTY COUNCIL...            ,"83,250.00",Mar-22
EREWASH BOROUGH COUNCIL,9109,EBC Balance Sheet             ,Payroll Coll Acc National Ins ,18-Mar-2022,HMRC CUMBERNAULD                        ,467.91,Mar-22
EREWASH BOROUGH COUNCIL,9107,EBC Balance Sheet             ,Payroll Coll Acc National Ins ,17-Mar-2022,HMRC CUMBERNAULD                        ,"100,756.96",Mar-22
EREWASH BOROUGH COUNCIL,8862,EBC Balance Sheet             ,Payroll Coll Acc - Added Years,16-Mar-2022,DERBYSHIRE COUNTY COUNCIL...            ,253.84,Mar-22
EREWASH BOROUGH COUNCIL,9107,EBC Balance Sheet             ,Payroll Coll Acc Student Loan ,17-Mar-2022,HMRC CUMBERNAULD                        ,"1,251.00",Mar-22
EREWASH BOROUGH COUNCIL,10678,EBC Balance Sheet             ,Lloyds Credit Card Suspense   ,02-Mar-2022,LLOYDS BANK PLC                         ,784.25,Mar-22
EREWASH BOROUGH COUNCIL,10678,EBC Balance Sheet             ,Lloyds Credit Card Suspense   ,02-Mar-2022,LLOYDS BANK PLC                         ,385.00,Mar-22
EREWASH BOROUGH COUNCIL,10678,EBC Balance Sheet             ,Lloyds Credit Card Suspense   ,02-Mar-2022,LLOYDS BANK PLC                         ,668.95,Mar-22
EREWASH BOROUGH COUNCIL,9037,EBC Balance Sheet             ,NNDR - Central Government     ,04-Mar-2022,"DEPT FOR LEVELLING UP,HOUSING&COMMUNITIE","6,009,701.00",Mar-22
EREWASH BOROUGH COUNCIL,10791,EBC Balance Sheet             ,NNDR - Central Government     ,30-Mar-2022,"DEPT FOR LEVELLING UP,HOUSING&COMMUNITIE","206,958.00",Mar-22
EREWASH BOROUGH COUNCIL,9293,EBC Balance Sheet             ,NNDR Coll Fund Control Account,21-Mar-2022,"DEPT FOR LEVELLING UP,HOUSING&COMMUNITIE","976,981.00",Mar-22
EREWASH BOROUGH COUNCIL,8646,EBC Balance Sheet             ,EBC Fit for Work Scheme       ,22-Feb-2022,PARKWOOD LEISURE LTD                    ,445.50,Mar-22
EREWASH BOROUGH COUNCIL,10401,EBC Balance Sheet             ,EBC Fit for Work Scheme       ,28-Mar-2022,PARKWOOD LEISURE LTD                    ,472.50,Mar-22
EREWASH BOROUGH COUNCIL,8643,EBC Balance Sheet             ,Payroll Coll Acc - Trade Union,22-Feb-2022,UNISON                                  ,426.45,Mar-22
EREWASH BOROUGH COUNCIL,10411,EBC Balance Sheet             ,Payroll Coll Acc - Trade Union,28-Mar-2022,UNISON                                  ,426.45,Mar-22
EREWASH BOROUGH COUNCIL,8641,EBC Balance Sheet             ,Payroll Coll Acc Labour Party ,22-Feb-2022,EREWASH LABOUR GROUP                    ,512.92,Mar-22
EREWASH BOROUGH COUNCIL,10414,EBC Balance Sheet             ,Payroll Coll Acc Labour Party ,28-Mar-2022,EREWASH LABOUR GROUP                    ,620.74,Mar-22
EREWASH BOROUGH COUNCIL,8644,EBC Balance Sheet             ,Payroll Coll Acc - AVCS       ,22-Feb-2022,PRUDENTIAL                              ,"2,169.16",Mar-22
EREWASH BOROUGH COUNCIL,10409,EBC Balance Sheet             ,Payroll Coll Acc - AVCS       ,28-Mar-2022,PRUDENTIAL                              ,"2,169.16",Mar-22
EREWASH BOROUGH COUNCIL,8647,EBC Balance Sheet             ,Payroll Coll Acc Credit Union ,22-Feb-2022,DERBYSHIRE COMMUNITY BANK               ,330.00,Mar-22
EREWASH BOROUGH COUNCIL,10398,EBC Balance Sheet             ,Payroll Coll Acc Credit Union ,28-Mar-2022,DERBYSHIRE COMMUNITY BANK               ,330.00,Mar-22
EREWASH BOROUGH COUNCIL,9035,EBC Balance Sheet             ,Childcare Salary Sacrifice    ,04-Mar-2022,KIDDIVOUCHERS LTD                       ,333.00,Mar-22
EREWASH BOROUGH COUNCIL,8855,Operational Services          ,Internal Fixtures and Fittings,17-Feb-2022,KOMPAN LTD                              ,"70,000.00",Mar-22
EREWASH BOROUGH COUNCIL,9046,Personnel and ICT             ,Vehicles                      ,02-Mar-2022,INSIGHT DIRECT (UK) LTD                 ,491.16,Mar-22
EREWASH BOROUGH COUNCIL,9044,Personnel and ICT             ,Vehicles                      ,02-Mar-2022,INSIGHT DIRECT (UK) LTD                 ,823.02,Mar-22
EREWASH BOROUGH COUNCIL,9047,Personnel and ICT             ,Vehicles                      ,02-Mar-2022,INSIGHT DIRECT (UK) LTD                 ,"1,339.92",Mar-22
EREWASH BOROUGH COUNCIL,9048,Personnel and ICT             ,Vehicles                      ,02-Mar-2022,INSIGHT DIRECT (UK) LTD                 ,"1,339.92",Mar-22
EREWASH BOROUGH COUNCIL,9042,Personnel and ICT             ,Vehicles                      ,02-Mar-2022,INSIGHT DIRECT (UK) LTD                 ,"1,646.04",Mar-22
EREWASH BOROUGH COUNCIL,9043,Personnel and ICT             ,Vehicles                      ,02-Mar-2022,INSIGHT DIRECT (UK) LTD                 ,"5,163.00",Mar-22
EREWASH BOROUGH COUNCIL,9045,Personnel and ICT             ,Vehicles                      ,02-Mar-2022,INSIGHT DIRECT (UK) LTD                 ,"5,163.00",Mar-22
EREWASH BOROUGH COUNCIL,8832,Planning                      ,Structural Property Works     ,28-Feb-2022,KIWA CMT TESTING                        ,"1,163.70",Mar-22
EREWASH BOROUGH COUNCIL,8849,Planning                      ,Structural Property Works     ,28-Feb-2022,ALLIANCE CONTRACTING SOLUTIONS LTD      ,"2,069.00",Mar-22
EREWASH BOROUGH COUNCIL,8451,Environmental & Housing Serv  ,Vehicles                      ,10-Feb-2022,TERBERG MATEC UK                        ,351.42,Mar-22
EREWASH BOROUGH COUNCIL,8450,Environmental & Housing Serv  ,Vehicles                      ,10-Feb-2022,TERBERG MATEC UK                        ,"166,671.64",Mar-22
EREWASH BOROUGH COUNCIL,9778,Environmental & Housing Serv  ,Vehicles                      ,29-Mar-2021,BUCHER MUNICIPAL LTD                    ,"137,748.00",Mar-22
EREWASH BOROUGH COUNCIL,9778,Environmental & Housing Serv  ,Vehicles                      ,29-Mar-2021,BUCHER MUNICIPAL LTD                    ,255.00,Mar-22
EREWASH BOROUGH COUNCIL,8180,Environmental & Housing Serv  ,Vehicles                      ,07-Feb-2022,HENTON & CHATTELL LTD                   ,"8,449.76",Mar-22
EREWASH BOROUGH COUNCIL,9091,Environmental & Housing Serv  ,Disabled Facilities Grant     ,10-Feb-2022,DERBYSHIRE COUNTY COUNCIL...            ,"2,455.00",Mar-22
EREWASH BOROUGH COUNCIL,9093,Environmental & Housing Serv  ,Disabled Facilities Grant     ,31-Jan-2022,DERBYSHIRE COUNTY COUNCIL...            ,"4,946.00",Mar-22
EREWASH BOROUGH COUNCIL,9089,Environmental & Housing Serv  ,Disabled Facilities Grant     ,10-Feb-2022,DERBYSHIRE COUNTY COUNCIL...            ,"5,698.00",Mar-22
EREWASH BOROUGH COUNCIL,9090,Environmental & Housing Serv  ,Disabled Facilities Grant     ,16-Feb-2022,DERBYSHIRE COUNTY COUNCIL...            ,"5,750.00",Mar-22
EREWASH BOROUGH COUNCIL,9129,Environmental & Housing Serv  ,Disabled Facilities Grant     ,25-Jan-2022,DERBYSHIRE COUNTY COUNCIL...            ,"5,845.70",Mar-22
EREWASH BOROUGH COUNCIL,9130,Environmental & Housing Serv  ,Disabled Facilities Grant     ,31-Jan-2022,DERBYSHIRE COUNTY COUNCIL...            ,"5,861.00",Mar-22
EREWASH BOROUGH COUNCIL,9128,Environmental & Housing Serv  ,Disabled Facilities Grant     ,16-Feb-2022,DERBYSHIRE COUNTY COUNCIL...            ,"5,882.80",Mar-22
EREWASH BOROUGH COUNCIL,9127,Environmental & Housing Serv  ,Disabled Facilities Grant     ,01-Feb-2022,DERBYSHIRE COUNTY COUNCIL...            ,"6,497.60",Mar-22
EREWASH BOROUGH COUNCIL,9092,Environmental & Housing Serv  ,Disabled Facilities Grant     ,01-Feb-2022,DERBYSHIRE COUNTY COUNCIL...            ,"6,778.50",Mar-22
EREWASH BOROUGH COUNCIL,9385,Environmental & Housing Serv  ,Disabled Facilities Grant     ,31-Jan-2022,DERBYSHIRE COUNTY COUNCIL...            ,"2,094.00",Mar-22
EREWASH BOROUGH COUNCIL,9814,Environmental & Housing Serv  ,Disabled Facilities Grant     ,22-Feb-2022,DERBYSHIRE COUNTY COUNCIL...            ,"4,496.00",Mar-22
EREWASH BOROUGH COUNCIL,9810,Environmental & Housing Serv  ,Disabled Facilities Grant     ,28-Feb-2022,DERBYSHIRE COUNTY COUNCIL...            ,"5,187.19",Mar-22
EREWASH BOROUGH COUNCIL,9813,Environmental & Housing Serv  ,Disabled Facilities Grant     ,17-Feb-2022,DERBYSHIRE COUNTY COUNCIL...            ,"5,984.83",Mar-22
EREWASH BOROUGH COUNCIL,9811,Environmental & Housing Serv  ,Disabled Facilities Grant     ,10-Feb-2022,DERBYSHIRE COUNTY COUNCIL...            ,"6,317.40",Mar-22
EREWASH BOROUGH COUNCIL,9812,Environmental & Housing Serv  ,Disabled Facilities Grant     ,03-Feb-2022,DERBYSHIRE COUNTY COUNCIL...            ,"10,784.00",Mar-22
EREWASH BOROUGH COUNCIL,9815,Environmental & Housing Serv  ,Disabled Facilities Grant     ,05-Jan-2022,DERBYSHIRE COUNTY COUNCIL...            ,"15,444.38",Mar-22
EREWASH BOROUGH COUNCIL,8887,,,21-Feb-2022,PENHAM EXCEL LIMITED                    ,579.13,Mar-22
EREWASH BOROUGH COUNCIL,10391,,,21-Mar-2022,PENHAM EXCEL LIMITED                    ,877.56,Mar-22
EREWASH BOROUGH COUNCIL,9403,,,28-Feb-2022,MARSTON HOLDINGS LIMITED                ,260.79,Mar-22
